Cogmind - Beta 14 @@@ ROGUE MODE // 2024.11.05 @ 12:36:18 Player: OG DANIEL Result: Destroyed by G-47 Trooper with Particle Gun Performance ------------- Evolutions (2) 1000 Regions Visited (4) 800 Robots Destroyed (35) 175 Value Destroyed (1013) 1013 Prototype IDs (0) 0 Alien Tech Used (0) 0 Bonus (0) 0 TOTAL SCORE: 2988 Bonus ------- None Cogmind --------- Core Integrity 0/550 Matter 29/300 Energy 100/100 System Corruption 0% Temperature Cool (9) Movement Core (350) Ox6 Location -8/Storage Parts ------- > --- POWER (1) -------- (None) > --- PROPULSION (2) --- (None) > --- UTILITY (5) ------ Large Storage Unit Salvage Targeting Computer > --- WEAPON (3) ------- (None) > --- INVENTORY (15) --- Ion Engine Light Treads Aluminum Leg Aluminum Leg Medium Matter Pod (100) Heavy Assault Rifle Mining Claw Peak State ------------ > --- POWER ------------ Light Ion Engine > --- PROPULSION ------- Light Treads Light Treads > --- UTILITY ---------- Medium Storage Unit Medium Storage Unit Medium Matter Pod > --- WEAPON ----------- Heavy Assault Rifle Heavy Assault Rifle > --- INVENTORY -------- Ion Engine Aluminum Leg Aluminum Leg Wheel Compact Wheel Heavy Assault Rifle Heavy Assault Rifle Grenade Launcher Grenade Launcher [Rating: 11] Favorites ----------- Power Light Ion Engine Engine Light Ion Engine Propulsion Light Treads Treads Light Treads Utility Large Storage Unit Device Heat Sink Storage Large Storage Unit Processor Salvage Targeting Computer Weapon Heavy Assault Rifle Energy Gun EM Pulse Gun Ballistic Gun Heavy Assault Rifle Launcher Improved Grenade Launcher Build | -11 -10 -9 -8 -8 ------- Run | Yrd Mat Mat Mat Sto Slots Evolved 4 | . . 2 2 . Power . | . . . . . Propulsion . | . . . . . Utility 3 | . . 1 2 . Weapon 1 | . . 1 . . Parts Attached 27 | 6 6 8 . 7 Power 3 | 1 1 1 . . Engine 3 | 1 1 1 . . Core . | . . . . . Reactor . | . . . . . Propulsion 5 | 2 . 2 . 1 Treads 5 | 2 . 2 . 1 Leg . | . . . . . Wheel . | . . . . . Hover . | . . . . . Flight . | . . . . . Utility 7 | 1 2 3 . 1 Device 1 | . . 1 . . Storage 5 | 1 2 2 . . Processor 1 | . . . . 1 Hackware . | . . . . . Protection . | . . . . . Artifact . | . . . . . Weapon 12 | 2 3 2 . 5 Energy Gun 1 | 1 . . . . Energy Cannon . | . . . . . Ballistic Gun 8 | 1 3 2 . 2 Ballistic Cannon . | . . . . . Launcher 3 | . . . . 3 Special Weapon . | . . . . . Impact Weapon . | . . . . . Slashing Weapon . | . . . . . Piercing Weapon . | . . . . . Special Melee Weapon . | . . . . . Unidentified Prototypes . | . . . . . Parts Lost 17 | . 2 3 . 12 Power 3 | . 1 1 . 1 Propulsion 4 | . . 1 . 3 Utility 1 | . . 1 . . Weapon 9 | . 1 . . 8 Highest Loss Streak 8 | . 1 2 . 8 To Critical Strikes . | . . . . . Average Slot Usage (%) 71 | . 90 74 63 42 Engine 9 | . 13 9 9 3 Treads 20 | . 28 22 18 9 Device 1 | . . 2 . . Storage 13 | . 19 12 9 9 Energy Gun 2 | . 6 . . . Ballistic Gun 22 | . 21 26 27 15 Peak Build Rating 11 | 6 10 11 11 11 Average Rating 7 | 5 6 9 11 7 On Entrance 7 | . 6 10 11 11 Naked Turns . | . . . . . Heaviest Build 32 | 14 24 32 32 32 Greatest Support 40 | 40 40 40 40 40 Greatest Overweight (x) 8 | 2 . 1 . 8 Average Overweight (x) . | . . . . 1 Largest Inventory Capacity 15 | 8 10 15 15 15 Average Capacity 12 | 7 9 14 15 15 Most Carried 11 | 6 10 11 9 9 Average Carried 7 | 3 8 7 9 7 Final Capacity 15 | 8 10 15 15 15 Final Carried 9 | 6 9 9 9 7 Class Distribution -------------------- 69% | Mutant 16% | Gunner 14% | Scavenger-Gunner Dominant Class ---------------- Mutant | -10/Materials Mutant | -9/Materials Gunner | -8/Materials Mutant | -8/Storage Resources | -11 -10 -9 -8 -8 ----------- Run | Yrd Mat Mat Mat Sto Matter Collected 858 | 255 83 342 . 178 Remotely . | . . . . . Salvage Created 1097 | . 232 503 . 362 Parts 69 | . 18 29 . 22 Haulers Intercepted 1 | . . . . 1 Recyclers Shooed 1 | . . 1 . . Parts Field Recycled . | . . . . . Retrieved Matter . | . . . . . Parts Self-Destructed . | . . . . . Prevented . | . . . . . Kills | -11 -10 -9 -8 -8 ------- Run | Yrd Mat Mat Mat Sto Combat Hostiles Destroyed 25 | . 6 10 . 9 Guns 20 | . 6 10 . 4 AOE 5 | . . . . 5 Classes Destroyed 12 | . 4 5 . 3 Worker 2 | . 1 . . 1 Builder 2 | . . 1 . 1 Tunneler 1 | . 1 . . . Hauler 1 | . . . . 1 Recycler 1 | . . 1 . . Operator 1 | . . . . 1 Watcher 2 | . . 1 . 1 Swarmer 5 | . 2 3 . . Grunt 14 | . 4 4 . 6 Duelist 1 | . . 1 . . Sentry 4 | . . 2 . 2 Hunter 1 | . . . . 1 Best Kill Streak 8 | . 7 7 . 8 Combat Bots Only 7 | . 4 7 . 3 Max Kills in Single Turn 2 | . 2 2 . 2 Gunslinging 1 | . 1 1 . 1 Exploded 1 | . . . . 1 Melee . | . . . . . Uniques/NPCs Destroyed . | . . . . . Combat | -11 -10 -9 -8 -8 -------- Run | Yrd Mat Mat Mat Sto Hostile Shots Fired 250 | . 73 34 . 143 Missed 67 | . 20 7 . 40 Damage Taken 2596 | . 484 387 . 1725 Core 763 | . 118 92 . 553 Absorbed by Shields . | . . . . . Core Remaining (%) 76 | 100 52 77 . . Volleys Fired 89 | . 25 29 . 35 Largest 3 | . 2 3 . 3 Hottest 83 | . 60 69 . 83 Shots Fired 190 | . 49 70 . 71 Gun 177 | . 49 70 . 58 Cannon . | . . . . . Launcher 13 | . . . . 13 Special . | . . . . . Kinetic 174 | . 46 70 . 58 Thermal . | . . . . . Explosive 13 | . . . . 13 Electromagnetic 3 | . 3 . . . Robot Hit Streak 16 | . 9 5 . 16 Robot Miss Streak 3 | . 3 3 . 3 Penetration Max . | . . . . . Secondary Targets 11 | . 3 4 . 4 Max Gunslinging Chain 2 | . 1 1 . 2 Shots Hit Robots 106 | . 27 39 . 40 Core Hits 62 | . 14 21 . 27 Critical Kills . | . . . . . Critical Parts Destroyed . | . . . . . Critical Strikes . | . . . . . Melee Attacks . | . . . . . Impact . | . . . . . Slashing . | . . . . . Piercing . | . . . . . Sneak Attacks . | . . . . . Combat Hostiles . | . . . . . Follow-up Attacks . | . . . . . Damage Inflicted 2534 | . 301 591 . 1642 Guns 1404 | . 301 591 . 512 Cannons . | . . . . . Explosions 1130 | . . . . 1130 Melee . | . . . . . Ramming . | . . . . . Kinetic 1389 | . 286 591 . 512 Thermal . | . . . . . Explosive 1130 | . . . . 1130 Electromagnetic 15 | . 15 . . . Impact . | . . . . . Slashing . | . . . . . Piercing . | . . . . . Highest Corruption 2 | . 2 . . . Average Corruption 2 | . 2 . . . Corruption Purged . | . . . . . Corruption Blocked . | . . . . . Effects 1 | . 1 . . . Heat Flow Errors 1 | . 1 . . . Overload Shots . | . . . . . Overflow Damage 32 | . . . . 32 Projectiles . | . . . . . Explosions 32 | . . . . 32 Melee . | . . . . . Knockbacks . | . . . . . Impact . | . . . . . Kinetic . | . . . . . Secondary . | . . . . . Self-Inflicted Damage 258 | . . . . 258 Shots 7 | . . . . 7 Rammed . | . . . . . Targets Rammed . | . . . . . Kicked . | . . . . . Crushed . | . . . . . Highest Temperature 108 | . 108 14 . 72 Average Temperature 24 | . 23 8 . 28 Received Heat Transfer 834 | . 114 126 . 594 Siege Activations . | . . . . . Robots Corrupted . | . . . . . Combat Hostiles . | . . . . . Parts Fried . | . . . . . Impact Corruptions . | . . . . . Robots Melted . | . . . . . Combat Hostiles . | . . . . . Parts Melted . | . . . . . Heat Transferred . | . . . . . Parts Sabotaged . | . . . . . Parts Stolen . | . . . . . Parts Stripped . | . . . . . Power Chain Reactions . | . . . . . Alert | -11 -10 -9 -8 -8 ------- Run | Yrd Mat Mat Mat Sto Peak Influence 336 | . 160 287 76 336 Initial 76 | . . 67 76 31 Average 110 | . 67 133 76 162 Maximum Alert Level 1 | . . 1 . 1 Low Security (%) 90 | 100 100 87 100 79 Level 1 9 | . . 12 . 20 Level 2 . | . . . . . Level 3 . | . . . . . Level 4 . | . . . . . Level 5 . | . . . . . High Security . | . . . . . Max Security . | . . . . . Squads Dispatched 5 | . 1 1 . 3 Investigation . | . . . . . Extermination . | . . . . . Reinforcement 5 | . 1 1 . 3 Assault . | . . . . . Garrison . | . . . . . Intercept . | . . . . . Searches Triggered . | . . . . . Construction Impeded 2 | . . . . 2 Haulers Reinforced . | . . . . . Active Scanning Responses . | . . . . . Cargo Convoy Interrupts . | . . . . . Stealth | -11 -10 -9 -8 -8 --------- Run | Yrd Mat Mat Mat Sto Distress Signals 4 | . 1 1 . 2 Communications Jammed . | . . . . . Distress Signals . | . . . . . Times Spotted 42 | . 10 13 . 19 Peak Tracking Total 8 | . 8 6 . 8 Tactical Retreats 1 | . . 1 . . Traps | -11 -10 -9 -8 -8 ------- Run | Yrd Mat Mat Mat Sto Traps Triggered 1 | . 1 . . . Indirectly . | . . . . . Trap Hack Attempts . | . . . . . Triggered . | . . . . . Disarmed . | . . . . . Reprogrammed . | . . . . . Reused . | . . . . . Traps Extracted . | . . . . . Installed . | . . . . . Triggered . | . . . . . Machines | -11 -10 -9 -8 -8 ---------- Run | Yrd Mat Mat Mat Sto Machines Disabled 3 | . . 1 . 2 Max in Single Turn 2 | . . 1 . 2 Machines Repaired . | . . . . . Machines Dismantled . | . . . . . Machines Sabotaged . | . . . . . Overloaded Fab Kills . | . . . . . Hacking | -11 -10 -9 -8 -8 --------- Run | Yrd Mat Mat Mat Sto Machines Accessed . | . . . . . Terminals . | . . . . . Fabricators . | . . . . . Repair Stations . | . . . . . Recycling Units . | . . . . . Scanalyzers . | . . . . . Garrison Access . | . . . . . Total Hacks . | . . . . . Successful . | . . . . . Failed . | . . . . . Catastrophic . | . . . . . Database Lockouts . | . . . . . Manual . | . . . . . Terminals . | . . . . . Fabricators . | . . . . . Repair Stations . | . . . . . Recycling Units . | . . . . . Scanalyzers . | . . . . . Garrison Access . | . . . . . Terminal Hacks . | . . . . . Fabricator Hacks . | . . . . . Repair Station Hacks . | . . . . . Recycling Unit Hacks . | . . . . . Scanalyzer . | . . . . . Garrison Access Hacks . | . . . . . Unauthorized Hacks . | . . . . . Terminals . | . . . . . Fabricators . | . . . . . Repair Stations . | . . . . . Recycling Units . | . . . . . Scanalyzers . | . . . . . Garrison Access . | . . . . . Data Cores Recovered . | . . . . . Used . | . . . . . Hacking Detections . | . . . . . Full Trace Events . | . . . . . Feedback Events . | . . . . . Feedback Blocked . | . . . . . Robot Schematics Acquired . | . . . . . Robots Built . | . . . . . Authchips . | . . . . . Time . | . . . . . Total Robot Build Rating . | . . . . . Part Schematics Acquired . | . . . . . Parts Built . | . . . . . Authchips . | . . . . . Time . | . . . . . Total Part Build Rating . | . . . . . Parts Repaired . | . . . . . Time . | . . . . . Parts Recycled . | . . . . . Recycled Matter . | . . . . . Retrieved Matter . | . . . . . Retrieved Components . | . . . . . Parts Scanalyzed . | . . . . . Part Schematics Acquired . | . . . . . Parts Damaged . | . . . . . Bothacking | -11 -10 -9 -8 -8 ------------ Run | Yrd Mat Mat Mat Sto Used RIF Installer . | . . . . . Robots Hacked . | . . . . . Non-combat . | . . . . . Combat . | . . . . . Robot Hacks Applied . | . . . . . Relay Couplers Released . | . . . . . Fabnet Peak Effective % . | . . . . . Robots Rewired . | . . . . . Allies Hacked . | . . . . . Hacks Repelled . | . . . . . Allies | -11 -10 -9 -8 -8 -------- Run | Yrd Mat Mat Mat Sto Total Allies . | . . . . . Largest Group . | . . . . . Highest-Rated Group . | . . . . . Highest-Rated Ally . | . . . . . Total Orders . | . . . . . Ally Attacks . | . . . . . Total Damage . | . . . . . Kills . | . . . . . Allies Corrupted . | . . . . . Allies Melted . | . . . . . Intel | -11 -10 -9 -8 -8 ------- Run | Yrd Mat Mat Mat Sto Robot Analysis Total . | . . . . . Derelict Logs Recovered . | . . . . . Drone Launches . | . . . . . Drone Recoveries . | . . . . . Exploration | -11 -10 -9 -8 -8 ------------- Run | Yrd Mat Mat Mat Sto Turns Passed 1439 | 114 396 612 15 302 Spaces Moved 652 | 68 185 298 10 91 Core 23 | 14 . . . 9 Treads 629 | 54 185 298 10 82 Legs . | . . . . . Wheels . | . . . . . Hover . | . . . . . Flight . | . . . . . Fastest Speed 50 | 50 160 160 160 160 Average Speed 166 | 146 160 160 160 213 Slowest Speed 450 | 160 160 240 160 450 Overloaded Moves . | . . . . . Propulsion Burnouts . | . . . . . Robots Hopped . | . . . . . Cave-ins Triggered . | . . . . . Exploration Rate (%) 18 | 5 42 25 3 16 Regions Visited 4 Branch Regions 1 Pre-discovered Areas . | . . . . . Known Exits Taken . | . . . . . Unknown Exits Taken 4 | 1 1 1 1 . Scrap Searched . | . . . . . Spaces Dug . | . . . . . Terrain Destroyed 83 | . . . . 83 Melee . | . . . . . Projectile . | . . . . . AOE 83 | . . . . 83 Terrain Rammed . | . . . . . Walls Destroyed . | . . . . . Machines Disabled . | . . . . . Actions | -11 -10 -9 -8 -8 --------- Run | Yrd Mat Mat Mat Sto Total 839 | 79 242 372 9 137 Wait 50 | . 17 30 . 3 Move 648 | 67 184 297 9 91 Hop . | . . . . . Pick Up 12 | 6 5 . . 1 Fast Attach 19 | 6 3 6 . 4 Attach 4 | . 1 . . 3 Detach 4 | . 1 3 . . Swap 4 | . 2 2 . . Drop 9 | . 4 5 . . Fire 89 | . 25 29 . 35 Melee . | . . . . . Ram . | . . . . . Kick . | . . . . . Crush . | . . . . . Escape Stasis . | . . . . . Rewire . | . . . . . Trap . | . . . . . Miscellaneous . | . . . . . Route ------- -11/Scrapyard -10/Materials (discovered 2 exits: *Mat / [*Min]) -9/Materials -8/Materials -8/Storage History --------- Turn | Location | Event 16 | -11/Scrapyard | Discovered new exit (range 15) 115 | -11/Scrapyard | Entered Materials 290 | -10/Materials | Discovered new exit (range 16) 302 | -10/Materials | Build established: Mutant 454 | -10/Materials | Discovered new exit (range 10) 511 | -10/Materials | Entered another Materials area 511 | -9/Materials | Evolved 2 slots: Utility x1, Weapon x1 860 | -9/Materials | Destroyed 7 combat bots 941 | -9/Materials | Discovered new exit (range 15) 1123 | -9/Materials | Entered another Materials area 1123 | -8/Materials | Evolved 2 slots: Utility x2 1123 | -8/Materials | Discovered new exit (range 7) 1138 | -8/Materials | Entered Storage 1298 | -8/Storage | Lost 8 parts (1p2n5w) 1377 | -8/Storage | Core integrity fell below 50% 1430 | -8/Storage | Core integrity fell below 20% 1440 | -8/Storage | Destroyed by G-47 Trooper with Particle Gun Last Messages --------------- 01412_ Destroyed Imp. Hover Unit. 01412_ U-05 Engineer destroyed. 01414_ Critical hit (Burn: +37). 01417_ U-05 Engineer lays Concrete. 01418_ U-05 Engineer builds a Wall. 01421_ The unstable cave ceiling collapses. 01422_ U-05 Engineer lays Concrete. 01424_ U-05 Engineer builds a Wall. 01425_ Lgt. Treads destroyed. 01425_ Imp. Grenade Launcher destroyed. 01427_ U-05 Engineer builds a Wall. 01429_ U-05 Engineer lays Concrete. 01431_ The unstable cave ceiling collapses. 01431_ U-05 Engineer builds a Door. 01432_ U-05 Engineer builds a Wall. 01435_ Critical hit (Burn: +37). 01436_ U-05 Engineer lays Concrete. 01437_ Acquired 12 matter. 01437_ U-05 Engineer lays Concrete. 01438_ U-05 Engineer builds a Wall. Map ----- +----------------------------------------------------+ | ?????????????????????????????????????????????????? | | ?????????????????????????????????????????????????? | | ?????????????????????????????????????????????????? | | ?????????????????????????????????????????????????? | | ?????????????????????????????????????????????????? | | ?????????????????????????????????????????????????? | | ?????????????????????????????????????????????????? | | ?????????????????????????????????????????????????? | | ?????????????????????????????????????????????????? | | ?????????????????????????????????????????????????? | | ?????????????????????????????????????????????????? | | ??????????????????????#T##???????????????????????? | | ?????????????????????? ???????????????????????? | | ?????????????????????? ???????????????????????? | | ??????????????????????# ???????????????????????? | | ??????????????????????# ???????????????????????? | | ??????????????????????+ ???????????????????????? | | ??????????????????????# ^#??????????????????????? | | ??????????????? "?????#w^ #??????????????????????? | | ??????????????? ???# #??????????????????????? | | ????????????????"""#### #??????????????????????? | | ?????????????##### # ##?????????????????????? | | ?????????????# ##????????????????????? | | ?????????????# #????????????????????? | | ?????????????# #== #????????????????????? | | ?????????????# [ @ #????????????????????? | | ?????????????# *[ #????????????????????? | | ?????????????# # ####??????????????????? | | ?????????????# ##?????????????????? | | ?????????????# # ##?#####??????????? | | ???????????### # # #?#"""#??????????? | | ??????????#### ###"T"######?????? | | ????????? %! g #?????? | | ????????? g #?????? | | ????????? u g % #?????? | | ??????????####/# ###### # ###########?????? | | ?????????? ?????# ##???????????????? | | ??????????? ! ??????#= ##???????????????? | | ????????????? ???????#!" #????????????????? | | ???????????????????????# " #????????????????? | | ???????????????????????# """"" #????????????????? | | ???????????????????????# "???" #????????????????? | | ???????????????????????# """"" #????????????????? | | ???????????????????????# #????????????????? | | ???????????????????????# #????????????????? | | ???????????????????????##########????????????????? | | ?????????????????????????????????????????????????? | | ?????????????????????????????????????????????????? | | ?????????????????????????????????????????????????? | | | +----------------------------------------------------+ Best States ------------- Heat Dissipation 38 Energy Generation 10 Energy Capacity 250 Matter Stores 300 Matter Capacity 400 Sight Range 16 Terrain Scan Density 10 Evasion (%) 40 Recoil Reduction 2 Salvage Targeting 1 Item Schematics ----------------- None Robot Schematics ------------------ None Fabricated ------------ Nothing Alien Tech Used ----------------- None Achievements -------------- None Challenges ------------ None Game ------ Seed MultinovaIntegratedAxe Manual? 0 Play Time 00:11:50 Cumulative 9.0 hours Start 2024.11.05 @ 12:26:58 End 2024.11.05 @ 12:36:18 Sessions 1 Manual Loads 0 Difficulty Rogue Special Mode None Game No. 36 Rogue 36 Adventurer 0 Explorer 0 Win Type - Total 0 Types 0/0/0/0/0/0/0/0/0 Lore% 5 Gallery% 14 Achievement% 13 Wizard Run 0 Options --------- Layout 1 ASCII 0 Keyboard 0 Movement Numpad Keybinds 0 Fullscreen 1 Font 24/Smallcaps Map View 50x35 Zoom Use 0% Tactical HUD 1 Map Filters NONE Filters NONE Steam 1 RUN: 7d7763dd-21e4-4c30-9f5e-a00e6f2ecb1a